fUSD/lending_fUSD_20251101
["ID","MTS","AMOUNT","RATE_DAILY","PERIOD"]
[392832289,1762017048355,-151.0,0.00014999,2]
[392832290,1762017048366,-210.583447,0.00014999,2]
[392832291,1762017048376,-151.036242,0.00014999,2]
[392832292,1762017048387,-151.0,0.00014999,2]
[392832293,1762017048398,-151.0,0.00014999,2]
[392832294,1762017048412,-309.36797,0.00014999,2]
[392832295,1762017048422,-500.0,0.00014999,2]
[392832296,1762017048433,-500.0,0.00014999,2]
[392832297,1762017048444,-500.0,0.00014999,2]
[392832298,1762017048455,-309.36797,0.00014999,2]
[392832299,1762017048466,-500.0,0.00014999,2]
[392832300,1762017048478,-500.0,0.00014999,2]
[392832301,1762017048489,-151.0,0.00014999,2]
[392832302,1762017048500,-345.92808519,0.00014999,2]
[392832303,1762017048511,-309.36797,0.00014999,2]
[392832304,1762017048521,-309.36797,0.00014999,2]
[392832305,1762017048532,-151.0,0.00014999,2]
[392832306,1762017048542,-350.089243,0.00014999,2]
[392832307,1762017048553,-350.089243,0.00014999,2]
[392832308,1762017048564,-151.0,0.00014999,2]
[392832309,1762017048574,-350.089243,0.00014999,2]
[392832310,1762017048584,-151.0,0.00014999,2]
[392832311,1762017048902,-350.089243,0.00014999,2]
[392832312,1762017048924,-242.438692,0.00014999,2]
[392832313,1762017048937,-301.608876,0.00014999,2]
[392832314,1762017048946,-151.0,0.00014999,2]
[392832315,1762017048956,-151.0,0.00014999,2]
[392832316,1762017048965,-151.0,0.00014999,2]
[392832317,1762017048974,-369.661257,0.00014999,2]
[392832318,1762017048983,-241.514975,0.00014999,2]
[392832319,1762017048994,-151.0,0.00014999,2]
[392832320,1762017049004,-369.661257,0.00014999,2]
[392832321,1762017049013,-369.661257,0.00014999,2]
[392832322,1762017049022,-369.661257,0.00014999,2]
[392832323,1762017049031,-199.05566,0.00014999,2]
[392832324,1762017049041,-214.587656,0.00014999,2]
[392832325,1762017049050,-214.587656,0.00014999,2]
[392832326,1762017049059,-214.587656,0.00014999,2]
[392832327,1762017049069,-1004.646554,0.00014999,2]
[392832328,1762017049078,-1004.646554,0.00014999,2]
[392832329,1762017049088,-152.326077,0.00014999,2]
[392832330,1762017049097,-214.587656,0.00014999,2]
[392832331,1762017049106,-1004.646554,0.00014999,2]
[392832332,1762017049116,-152.326077,0.00014999,2]
[392832333,1762017049125,-1004.646554,0.00014999,2]
[392832334,1762017049135,-152.326077,0.00014999,2]
[392832335,1762017049143,-151.0,0.00014999,2]
[392832336,1762017049153,-152.326077,0.00014999,2]
[392832337,1762017049162,-151.0,0.00014999,2]
[392832338,1762017049171,-151.0,0.00014999,2]
[392832339,1762017049185,-151.0,0.00014999,2]
[392832340,1762017049195,-151.0,0.00014999,2]
[392832341,1762017049205,-908.77794,0.00014999,2]
[392832342,1762017049214,-908.77794,0.00014999,2]
[392832343,1762017049224,-908.77794,0.00014999,2]
[392832344,1762017049234,-908.77794,0.00014999,2]
[392832345,1762017049243,-157.481193,0.00014999,2]
[392832346,1762017049252,-151.0,0.00014999,2]
[392832347,1762017049262,-239.034408,0.00014999,2]
[392832348,1762017049271,-500.0,0.00014999,2]
[392832349,1762017049280,-342.52502965,0.00014999,2]
[392832350,1762017049289,-794.45955,0.00014999,2]
[392832351,1762017049298,-151.0,0.00014999,2]
[392832352,1762017049307,-794.45955,0.00014999,2]
[392832353,1762017049317,-151.0,0.00014999,2]
[392832354,1762017049326,-794.45955,0.00014999,2]
[392832355,1762017049336,-794.45955,0.00014999,2]
[392832356,1762017049345,-1000.0,0.00014999,2]
[392832357,1762017049355,-151.0,0.00014999,2]
[392832358,1762017049365,-151.0,0.00014999,2]
[392832359,1762017049375,-929.520794,0.00014999,2]
[392832360,1762017049384,-929.520794,0.00014999,2]
[392832361,1762017049393,-929.520794,0.00014999,2]
[392832362,1762017049407,-929.520794,0.00014999,2]
[392832363,1762017049416,-666.0,0.00014999,2]
[392832364,1762017049425,-3796612.50258777,0.00015,2]
[392832365,1762017049435,-153.67684116,0.00015,2]
[392832366,1762017049446,-153.67684115,0.00015,2]
[392832367,1762017049455,-153.67684115,0.00015,2]
[392832368,1762017049465,-153.67684115,0.00015,2]
[392832369,1762017049475,-153.67684115,0.00015,2]
[392832370,1762017049485,-153.67684115,0.00015,2]
[392832371,1762017049495,-876735.7448638,0.00015,2]
[392832372,1762017049695,-1240.0779603,0.00015,2]
[392832373,1762017049707,-1090.11786373,0.00015,2]
[392832374,1762017049718,-1840.88289894,0.00015,2]
[392832375,1762017049730,-877.1413088,0.00015,2]
[392832376,1762017049741,-839.95702253,0.00015,2]
[392832377,1762017049762,-11708.8825795,0.00015,2]
[392832378,1762017058240,500.0,0.00014777,2]
[392832379,1762017058288,356.00092007,0.00014777,2]
[392832380,1762017069297,221.6410156,0.00014704,2]
[392832381,1762017069458,893.09678367,0.00014539,2]
[392832382,1762017077517,159.17221349,0.00014797,2]
[392832383,1762017086339,500.0,0.00014777,2]
[392832384,1762017094969,4425.0,0.000148,2]
[392832385,1762017095426,359.1291185,0.00014777,2]
[392832386,1762017102495,150.0,0.00014079,2]
[392832387,1762017110163,500.0,0.00014777,2]
[392832388,1762017110221,192.63764644,0.00014777,2]
[392832389,1762017120123,1743.33230223,0.00014773,2]
[392832390,1762017120147,10000.01,0.00014773,2]
[392832391,1762017120176,10000.01,0.00014773,2]
[392832392,1762017120199,10000.01,0.00014773,2]
[392832393,1762017120224,10000.01,0.00014773,2]
[392832394,1762017120250,10000.01,0.00014773,2]
[392832395,1762017120273,10000.01,0.00014773,2]
[392832396,1762017120296,10000.01,0.00014773,2]
[392832397,1762017120319,10000.01,0.00014773,2]
[392832398,1762017120346,10000.01,0.00014773,2]
[392832399,1762017120395,500.0,0.00013356,2]
[392832400,1762017130196,-4383.31955474,0.00014773,2]
[392832401,1762017130220,-10000.01,0.00014773,2]
[392832402,1762017130335,-10000.01,0.00014773,2]
[392832403,1762017130445,-10000.01,0.00014773,2]
[392832404,1762017130739,-10000.01,0.00014773,2]
[392832405,1762017130857,-3181.59185697,0.00014773,2]
[392832406,1762017130879,-3636.82628606,0.00014773,2]
[392832407,1762017136883,588.286,0.00014773,2]
[392832408,1762017173351,200.0,0.00014041,2]
[392832409,1762017190986,168.0,0.00014677,2]
[392832410,1762017196303,-9043.724,0.000148,2]
[392832411,1762017196379,-10000.01,0.000148,2]
[392832412,1762017196608,-10000.01,0.000148,2]
[392832413,1762017196721,-10000.01,0.000148,2]
[392832414,1762017196853,-10000.01,0.000148,2]
[392832415,1762017196984,-10000.01,0.000148,2]
[392832416,1762017197126,-10000.01,0.000148,2]
[392832417,1762017197239,-10000.01,0.000148,2]
[392832418,1762017197355,-10000.01,0.000148,2]
[392832419,1762017197474,-10000.01,0.000148,2]
[392832420,1762017197658,168.0,0.00014576,2]
[392832421,1762017202225,-334.76406203,0.00014761,2]
[392832422,1762017202281,-9162.48187594,0.000148,2]
[392832423,1762017202327,-10000.01,0.000148,2]
[392832424,1762017202444,-10000.01,0.000148,2]
[392832425,1762017202577,-138.18587594,0.000148,2]
[392832426,1762017202602,-9723.63824812,0.000148,2]
[392832427,1762017213488,1425.0,0.00014773,2]
[392832428,1762017213537,1425.0,0.0001479,2]
[392832429,1762017213657,1425.0,0.00014796,2]
[392832430,1762017213704,1425.0,0.00014753,2]
[392832431,1762017213820,1425.0,0.00014736,2]
[392832432,1762017213894,1425.0,0.0001475,2]
[392832433,1762017225511,166.67,0.00014435,2]
[392832434,1762017244779,1283.34,0.000148,2]
[392832435,1762017244802,10000.01,0.000148,2]
[392832436,1762017244824,10000.01,0.000148,2]
[392832437,1762017244846,10000.01,0.000148,2]
[392832438,1762017244867,10000.01,0.000148,2]
[392832439,1762017244895,10000.01,0.000148,2]
[392832440,1762017244917,10000.01,0.000148,2]
[392832441,1762017244939,10000.01,0.000148,2]
[392832442,1762017244961,8414.67,0.000148,2]
[392832443,1762017258129,500.0,0.00014673,2]
[392832444,1762017292093,500.0,0.00013356,2]
[392832445,1762017307662,585.34,0.000148,2]
[392832446,1762017307685,10000.01,0.000148,2]
[392832447,1762017361198,300.0,0.00014799,2]
[392832448,1762017399478,183.96,0.00011158,2]
[392832449,1762017421298,300.0,0.00014799,2]
[392832450,1762017459403,1200.0,0.00014799,2]
[392832451,1762017463585,500.0,0.00013356,2]
[392832452,1762017482300,150.0,0.00014799,2]
[392832453,1762017482416,300.0,0.00014799,2]
[392832454,1762017564767,150.0,0.00013919,2]
[392832455,1762017601208,1200.0,0.00014799,2]
[392832456,1762017601286,300.0,0.00014799,2]
[392832457,1762017601504,300.0,0.00014799,2]
[392832461,1762017633652,168.0,0.0001467,2]
[392832462,1762017634098,500.0,0.00013356,2]
[392832463,1762017637943,168.0,0.00014773,2]
[392832464,1762017661287,300.0,0.00014799,2]
[392832465,1762017662000,150.0,0.00014799,2]
[392832466,1762017684454,221.6410156,0.0001476,2]
[392832467,1762017687561,3608.4089844,0.00013921,2]
[392832468,1762017687585,66.8310156,0.00013921,2]
[392832472,1762017732560,152.56292513,0.00014791,2]
[392832473,1762017735421,239.84119403,0.00014791,2]
[392832474,1762017743831,500.0,0.00031232,120]
[392832475,1762017744081,481.31,0.00031506,120]
[392832476,1762017759137,1200.0,0.00014799,2]
[392832477,1762017781763,300.0,0.00014799,2]
[392832478,1762017810514,165.37,0.0001395,2]
[392832479,1762017841713,150.0,0.00014799,2]
[392832480,1762017842264,300.0,0.00014799,2]
[392832481,1762017847267,-7425.40486524,0.000148,2]
[392832482,1762017847411,-10000.01,0.000148,2]
[392832483,1762017847545,-638.85384432,0.000148,2]
[392832484,1762017847585,-8722.30231136,0.000148,2]
[392832485,1762017847654,-1277.70768864,0.000148,2]
[392832486,1762017847688,-7444.59462272,0.000148,2]
[392832487,1762017847764,-2555.41537728,0.000148,2]
[392832488,1762017847807,-4889.17924544,0.000148,2]
[392832489,1762017847891,-10000.01,0.000148,2]
[392832490,1762017848048,-10000.01,0.000148,2]
[392832491,1762017850043,-10000.01,0.000148,2]
[392832492,1762017850204,-10000.01,0.000148,2]
[392832493,1762017850379,-10000.01,0.000148,2]
[392832494,1762017850500,-10000.01,0.000148,2]
[392832495,1762017853220,-10000.01,0.000148,2]
[392832496,1762017853458,-10000.01,0.000148,2]
[392832497,1762017853615,-10000.01,0.000148,2]
[392832498,1762017853738,-10000.01,0.000148,2]
[392832499,1762017853877,-10000.01,0.000148,2]
[392832500,1762017854014,-10000.01,0.000148,2]
[392832501,1762017859258,-10000.01,0.000148,2]
[392832502,1762017859392,-10000.01,0.000148,2]
[392832503,1762017859535,-10000.01,0.000148,2]
[392832504,1762017862095,-10000.01,0.000148,2]
[392832505,1762017862214,-4196.23011427,0.000148,2]
[392832506,1762017862244,-550.11012687,0.000148,2]
[392832507,1762017879209,507.32951772,0.000148,2]
[392832508,1762017879233,10000.01,0.000148,2]
[392832509,1762017879256,10000.01,0.000148,2]
[392832510,1762017879278,10000.01,0.000148,2]
[392832511,1762017879312,10000.01,0.000148,2]
[392832512,1762017879336,10000.01,0.000148,2]
[392832513,1762017901260,300.0,0.00014799,2]
[392832514,1762017901313,300.0,0.00014799,2]
[392832515,1762017901585,1200.0,0.00014799,2]
[392832516,1762017904460,150.0,0.00013488,2]
[392832517,1762017904535,150.0,0.00013787,2]
[392832518,1762017904596,150.0,0.00014087,2]
[392832519,1762017904645,150.0,0.00014387,2]
[392832520,1762017904702,150.0,0.00014687,2]
[392832521,1762017908645,150.0,0.00013488,2]
[392832522,1762017908694,150.0,0.00014237,2]
[392832523,1762017908740,150.0,0.00014612,2]
[392832524,1762017908807,150.0,0.00013488,2]
[392832525,1762017908853,150.0,0.00013581,2]
[392832526,1762017908922,150.0,0.00013675,2]
[392832527,1762017908977,150.0,0.00013862,2]
[392832528,1762017909016,150.0,0.00013769,2]
[392832529,1762017909071,150.0,0.00013862,2]
[392832530,1762017909137,150.0,0.00013956,2]
[392832531,1762017909210,150.0,0.0001405,2]
[392832532,1762017909249,300.0,0.000142,2]
[392832533,1762017909293,150.0,0.00014143,2]
[392832534,1762017909351,150.0,0.00014237,2]
[392832535,1762017909423,150.0,0.00014331,2]
[392832536,1762017909492,150.0,0.00014424,2]
[392832537,1762017909557,150.0,0.00014518,2]
[392832538,1762017909628,150.0,0.00014612,2]
[392832539,1762017909704,150.0,0.00014705,2]
[392832540,1762017909776,150.0,0.00014799,2]
[392832541,1762017909969,179.01924798,0.00013488,2]
[392832542,1762017913757,201.13248239,0.00013488,2]
[392832543,1762017913803,150.0,0.00013488,2]
[392832544,1762017913870,150.0,0.00013654,2]
[392832545,1762017913945,150.0,0.00013821,2]
[392832546,1762017914015,150.0,0.00013987,2]
[392832547,1762017914087,150.0,0.00014154,2]
[392832548,1762017914167,150.0,0.0001432,2]
[392832549,1762017914225,150.0,0.00014487,2]
[392832550,1762017914263,150.0,0.00014653,2]
[392832551,1762017915919,150.0,0.00013488,2]
[392832552,1762017915965,150.0,0.00013787,2]
[392832553,1762017916006,150.0,0.00013638,2]
[392832554,1762017916041,150.0,0.00013937,2]
[392832555,1762017916078,150.0,0.00014237,2]
[392832556,1762017916115,150.0,0.00014087,2]
[392832557,1762017916163,150.0,0.00014387,2]
[392832558,1762017916217,150.0,0.00014537,2]
[392832559,1762017916274,150.0,0.00014687,2]
[392832560,1762017919359,150.0,0.00013488,2]
[392832561,1762017919432,150.0,0.00013987,2]
[392832562,1762017919505,150.0,0.00014487,2]
[392832563,1762017919656,150.0,0.00013488,2]
[392832564,1762017925799,154.48626728,0.00013488,2]
[392832565,1762017926058,150.0,0.00013488,2]
[392832566,1762017926142,150.0,0.00013488,2]
[392832570,1762017929296,150.0,0.00013488,2]
[392832571,1762017931088,150.0,0.00013488,2]
[392832572,1762017933711,15.37200235,0.00013488,2]
[392832573,1762017933735,134.62799765,0.00013488,2]
[392832574,1762017933771,150.0,0.00013737,2]
[392832575,1762017933830,150.0,0.00013987,2]
[392832576,1762017933886,150.0,0.00014237,2]
[392832577,1762017933960,150.0,0.00014487,2]
[392832578,1762017934026,150.0,0.00014737,2]
[392832579,1762017967934,444.68057132,0.00013356,2]
[392832581,1762018002665,500.0,0.00014799,2]
[392832582,1762018002720,500.0,0.00014799,2]
[392832583,1762018002767,500.0,0.00014799,2]
[392832584,1762018002824,500.0,0.00014799,2]
[392832585,1762018002875,500.0,0.00014799,2]
[392832586,1762018002922,500.0,0.00014799,2]
[392832587,1762018002974,500.0,0.00014799,2]
[392832588,1762018003014,500.0,0.00014799,2]
[392832589,1762018003063,500.0,0.00014799,2]
[392832590,1762018003106,500.0,0.00014799,2]
[392832591,1762018003145,500.0,0.00014799,2]
[392832592,1762018003185,500.0,0.00014799,2]
[392832593,1762018003224,573.98886061,0.00014799,2]
[392832594,1762018003264,500.0,0.00014799,2]
[392832595,1762018003308,500.0,0.00014799,2]
[392832596,1762018003346,500.0,0.00014799,2]
[392832597,1762018003387,500.0,0.00014799,2]
[392832598,1762018003425,96.71257042,0.00014799,2]
[392832599,1762018003450,403.28742958,0.00014799,2]
[392832600,1762018003488,500.0,0.00014799,2]
[392832601,1762018003531,500.0,0.00014799,2]
[392832602,1762018003681,500.0,0.00014799,2]
[392832603,1762018003745,500.0,0.00014799,2]
[392832604,1762018003786,500.0,0.00014799,2]
[392832605,1762018003826,500.0,0.00014799,2]
[392832606,1762018003896,500.0,0.00014799,2]
[392832607,1762018003952,500.0,0.00014799,2]
[392832610,1762018021006,500.0,0.00014799,2]
[392832611,1762018021059,500.0,0.00014799,2]
[392832612,1762018021108,500.0,0.00014799,2]
[392832613,1762018021160,500.0,0.00014799,2]
[392832614,1762018021196,300.0,0.00014799,2]
[392832615,1762018021235,250.0,0.00014799,2]
[392832616,1762018021789,150.0,0.00014799,2]
[392832620,1762018059235,1200.0,0.00014799,2]
[392832623,1762018081344,300.0,0.00014799,2]
[392832625,1762018086788,166.66,0.00013699,2]
[392832626,1762018086850,166.66,0.00013871,2]
[392832627,1762018086936,166.66,0.00014044,2]
[392832628,1762018087152,166.66,0.00014216,2]
[392832629,1762018087353,166.66,0.00014389,2]
[392832630,1762018087564,166.66,0.00014562,2]
[392832644,1762018178920,164.58050126,0.00014767,2]
[392832645,1762018184129,164.58050121,0.00014786,2]
[392832647,1762018201175,67.60156795,0.00014799,2]
[392832649,1762018201203,1132.39843205,0.00014799,2]
[392832650,1762018201679,300.0,0.00014799,2]
[392832651,1762018201854,150.0,0.00014799,2]
[392832653,1762018202614,300.0,0.00014799,2]
[392832657,1762018210232,-85000.0,0.000148,2]
[392832689,1762018231989,-35801.01028547,0.000148,2]
[392832691,1762018232003,-4084.38524964,0.000148,2]
[392832693,1762018232017,-1000.0,0.000148,2]
[392832695,1762018232026,-16892.06119888,0.000148,2]
[392832697,1762018232099,-41078.93300248,0.000148,2]
[392832698,1762018232109,-490.58694926,0.000148,2]
[392832699,1762018232121,-19509.43305074,0.000148,2]
[392832700,1762018232131,-154.44619161,0.000148,2]
[392832701,1762018232141,-3441.70782099,0.000148,2]
[392832702,1762018232150,-300.0,0.000148,2]
[392832703,1762018232159,-195.0,0.000148,2]
[392832704,1762018232168,-300.0,0.00014801,2]
[392832705,1762018232178,-4562.62062072,0.00014802,2]
[392832706,1762018232189,-2440.13081067,0.00014802,2]
[392832707,1762018232212,-280.73832601,0.00014802,2]
[392832731,1762018237774,-1021.76457577,0.00014802,2]
[392832732,1762018238201,-23947.51057383,0.00014802,2]
[392832733,1762018238212,-3603.3105412,0.00014802,2]
[392832734,1762018238221,-164.58050121,0.00014805,2]
[392832735,1762018238231,-187.93878104,0.00014807,2]
[392832736,1762018238242,-4084.38524963,0.00014811,2]
[392832737,1762018238251,-3441.70782098,0.00014811,2]
[392832739,1762018238261,-150.0,0.0001482,2]
[392832741,1762018238271,-4084.38524963,0.00014822,2]
[392832743,1762018238280,-374.15,0.00014822,2]
[392832745,1762018238289,-3441.70782098,0.00014822,2]
[392832747,1762018238299,-165.37,0.00014822,2]
[392832749,1762018238308,-1425.0,0.00014823,2]
[392832751,1762018238317,-164.58050121,0.00014824,2]
[392832753,1762018238327,-4084.38524963,0.00014833,2]
[392832755,1762018238336,-3441.70782098,0.00014833,2]
[392832757,1762018238345,-150.0,0.00014836,2]
[392832759,1762018238354,-164.58050121,0.00014843,2]
[392832761,1762018238364,-4084.38524963,0.00014844,2]
[392832763,1762018238373,-519.00239,0.0001485,2]
[392832765,1762018238383,-239.84119403,0.00014854,2]
[392832767,1762018238392,-500.0,0.00014855,2]
[392832770,1762018238402,-4084.38524963,0.00014856,2]
[392832773,1762018238412,-2936.688,0.0001486,2]
[392832775,1762018238421,-164.58050121,0.00014862,2]
[392832777,1762018238436,-51352.7980353,0.00014863,2]
[392832779,1762018238445,-4084.38524963,0.00014867,2]
[392832781,1762018238455,-168.0,0.00014876,2]
[392832783,1762018238465,-200.0,0.00014877,2]
[392832785,1762018238474,-4084.38524963,0.00014878,2]
[392832787,1762018238483,-164.58050121,0.00014881,2]
[392832789,1762018238493,-4084.38524963,0.00014889,2]
[392832791,1762018238503,-1357.83,0.00014891,2]
[392832793,1762018238512,-151.0,0.00014891,2]
[392832795,1762018238522,-151.0,0.00014891,2]
[392832797,1762018238531,-151.0,0.00014891,2]
[392832799,1762018238540,-151.0,0.00014891,2]
[392832801,1762018238549,-151.0,0.00014891,2]
[392832803,1762018238558,-306.57558661,0.00014891,2]
[392832806,1762018238568,-151.0,0.00014891,2]
[392832808,1762018238577,-151.0,0.00014891,2]
[392832810,1762018238586,-151.0,0.00014891,2]
[392832812,1762018238595,-200.0,0.00014891,2]
[392832814,1762018238605,-620.0,0.00014891,2]
[392832816,1762018238614,-200.0,0.00014891,2]
[392832818,1762018238624,-500.0,0.00014891,2]
[392832820,1762018238635,-496.47127164,0.00014891,2]
[392832822,1762018238644,-200.0,0.00014891,2]
[392832824,1762018238653,-250.0,0.00014891,2]
[392832826,1762018238663,-250.0,0.00014891,2]
[392832828,1762018238672,-250.0,0.00014891,2]
[392832829,1762018238681,-250.0,0.00014891,2]
[392832830,1762018238690,-250.0,0.00014891,2]
[392832831,1762018238701,-250.0,0.00014891,2]
[392832832,1762018238710,-250.0,0.00014891,2]
[392832833,1762018238720,-250.0,0.00014891,2]
[392832834,1762018238729,-250.0,0.00014891,2]
[392832835,1762018238739,-250.0,0.00014891,2]
[392832836,1762018238748,-250.0,0.00014891,2]
[392832837,1762018238758,-250.0,0.00014891,2]
[392832838,1762018238767,-250.0,0.00014891,2]
[392832839,1762018238776,-250.0,0.00014891,2]
[392832841,1762018238785,-181.08010149,0.00014891,2]
[392832843,1762018238795,-250.0,0.00014891,2]
[392832845,1762018238804,-250.0,0.00014891,2]
[392832847,1762018238813,-250.0,0.00014891,2]
[392832849,1762018238822,-250.0,0.00014891,2]
[392832851,1762018238831,-151.0,0.00014891,2]
[392832853,1762018238841,-250.0,0.00014891,2]
[392832855,1762018238851,-250.0,0.00014891,2]
[392832857,1762018238860,-250.0,0.00014891,2]
[392832859,1762018238869,-267.07949348,0.00014891,2]
[392832861,1762018238878,-150.0,0.00014893,2]
[392832863,1762018238888,-326.41,0.00014896,2]
[392832865,1762018238898,-317.54,0.00014897,2]
[392832867,1762018238907,-19431.6266,0.000149,2]
[392832869,1762018238916,-88037.54071133,0.000149,2]
[392832871,1762018238928,-7758.0,0.000149,2]
[392832932,1762018239851,-1354.05208867,0.000149,2]
[392832933,1762018239861,-2095.19413176,0.000149,2]
[392832938,1762018239942,-1989.19111787,0.000149,2]
[392832940,1762018239951,-1711.55121673,0.000149,2]
[392832942,1762018239961,-164.58050121,0.000149,2]
[392832944,1762018239971,-1489.78935205,0.00014954,2]
[392832946,1762018239981,-559.0,0.00014963,2]
[392832948,1762018239990,-607.0,0.00014963,2]
[392832950,1762018239999,-926.62,0.00014963,2]
[392832952,1762018240009,-3420.0,0.00014963,2]
[392832954,1762018240023,-500.0,0.00014973,2]
[392832956,1762018240032,-500.0,0.00014973,2]
[392832958,1762018240041,-500.0,0.00014973,2]
[392832959,1762018240051,-500.0,0.00014973,2]
[392832960,1762018240061,-500.0,0.00014973,2]
[392832961,1762018240070,-504.14669281,0.00014973,2]
[392832962,1762018240079,-500.0,0.00014973,2]
[392832963,1762018240088,-577.59273735,0.00014973,2]
[392832964,1762018240100,-150.0,0.00014973,2]
[392832965,1762018240109,-150.0,0.00014973,2]
[392832966,1762018240118,-150.0,0.00014973,2]
[392832967,1762018240128,-150.0,0.00014973,2]
[392832968,1762018240137,-211.02653668,0.00014973,2]
[392832969,1762018240147,-150.0,0.00014973,2]
[392832970,1762018240156,-500.0,0.00014973,2]
[392832971,1762018240165,-500.0,0.00014973,2]
[392832972,1762018240174,-151.97796274,0.00014973,2]
[392832973,1762018240183,-203.04390248,0.00014973,2]
[392832974,1762018240192,-150.0,0.00014973,2]
[392832975,1762018240202,-150.0,0.00014973,2]
[392832976,1762018240211,-500.0,0.00014973,2]
[392832977,1762018240221,-500.0,0.00014973,2]
[392832978,1762018240230,-150.0,0.00014973,2]
[392832981,1762018240243,-150.0,0.00014973,2]
[392832983,1762018240253,-150.0,0.00014973,2]
[392832985,1762018240263,-500.0,0.00014979,2]
[392832987,1762018240272,-10925.89940239,0.0001498,2]
[392832989,1762018240287,-28059.75235068,0.0001498,2]
[392832992,1762018240301,-26743.07468735,0.0001498,2]
[392832995,1762018240315,-3670.10718,0.0001498,2]
[392832998,1762018240335,-37187.27075178,0.0001498,2]
[392833102,1762018243042,-3441.70782098,0.00014844,2]
[392833103,1762018243052,-406.05423439,0.00014899,2]
[392833104,1762018243062,-519.72695082,0.00014899,2]
[392833105,1762018243072,-500.0,0.00014899,2]
[392833106,1762018243081,-307.1029632,0.00014899,2]
[392833107,1762018243092,-500.0,0.00014899,2]
[392833108,1762018243101,-175.8296513,0.00014899,2]
[392833109,1762018243110,-500.0,0.00014899,2]
[392833110,1762018243120,-500.0,0.00014973,2]
[392833111,1762018243129,-9241.35172932,0.0001498,2]
[392833112,1762018243139,-500.0,0.0001498,2]
[392833113,1762018243148,-519.0024,0.0001498,2]
[392833114,1762018243157,-150.0,0.00014983,2]
[392833115,1762018243166,-150.0,0.00014983,2]
[392833116,1762018243176,-500.0,0.00014983,2]
[392833117,1762018243185,-150.0,0.00014983,2]
[392833118,1762018243195,-150.0,0.00014983,2]
[392833119,1762018243204,-150.0,0.00014983,2]
[392833120,1762018243214,-150.0,0.00014983,2]
[392833121,1762018243223,-300.0,0.00014983,2]
[392833122,1762018243232,-1594.0,0.00014983,2]
[392833123,1762018243242,-1314.0,0.00014983,2]
[392833124,1762018243253,-1272.0,0.00014983,2]
[392833125,1762018243263,-819.0,0.00014983,2]
[392833127,1762018243272,-1187.0,0.00014983,2]
[392833129,1762018243281,-905.0,0.00014983,2]
[392833131,1762018243291,-182.0,0.00014985,2]
[392833132,1762018243301,-269.79691868,0.00014986,2]
[392833133,1762018243312,-150.0,0.00014986,2]
[392833134,1762018243321,-150.0,0.00014986,2]
[392833135,1762018243330,-150.0,0.00014986,2]
[392833136,1762018243339,-150.0,0.00014986,2]
[392833137,1762018243354,-150.0,0.00014986,2]
[392833138,1762018243365,-150.0,0.00014986,2]